bitfinex/quotes_BTCUSD_20251015
["timestamp","ask_amount","ask_price","bid_price","bid_amount"]
[1760568658169,1.23912934,110900.0,110890.0,0.29572773]
[1760568658385,0.01934634,110900.0,110890.0,0.29572773]
[1760568658608,0.54948861,110920.0,110910.0,0.18032639]
[1760568658838,1.219783,110910.0,110900.0,0.18032877]
[1760568659062,1.23915581,110910.0,110900.0,0.29392877]
[1760568659307,0.1996992,110910.0,110900.0,0.1136]
[1760568659515,0.1996992,110910.0,110900.0,0.18152176]
[1760568659516,0.18032639,110910.0,110900.0,0.18152176]
[1760568659759,1.57915581,110920.0,110910.0,0.18032639]
[1760568660010,1.75946594,110920.0,110910.0,0.18032639]
[1760568660235,1.40010939,110910.0,110900.0,0.29403286]
[1760568660483,1.43630071,110910.0,110900.0,9.021e-05]
[1760568660708,2.41914903,110910.0,110900.0,9.021e-05]
[1760568662060,1.97959083,110910.0,110900.0,9.021e-05]
[1760568662512,1.86599083,110910.0,110900.0,9.021e-05]
[1760568662732,1.97959083,110910.0,110900.0,9.021e-05]
[1760568663394,1.52599083,110910.0,110900.0,9.021e-05]
[1760568663636,1.63959083,110910.0,110900.0,9.021e-05]
[1760568663907,2.07914903,110910.0,110900.0,9.021e-05]
[1760568664330,2.10328554,110910.0,110900.0,9.021e-05]
[1760568665002,1.66372734,110910.0,110900.0,9.021e-05]
[1760568665297,2.13546453,110910.0,110900.0,9.021e-05]
[1760568665508,2.38602037,110910.0,110900.0,9.021e-05]
[1760568665731,2.49962037,110910.0,110900.0,0.00126932]
[1760568665946,2.47585663,110910.0,110900.0,0.00126932]
[1760568666179,2.03629843,110910.0,110900.0,0.00126932]
[1760568666401,2.36225663,110910.0,110900.0,0.00126932]
[1760568666621,2.47585663,110910.0,110900.0,0.00126932]
[1760568667266,2.36225663,110910.0,110900.0,0.00126932]
[1760568667478,2.47585663,110910.0,110900.0,0.00126932]
[1760568667885,2.36325663,110910.0,110900.0,0.00126932]
[1760568668091,2.47681663,110910.0,110900.0,0.00126932]
[1760568668831,2.45999812,110910.0,110900.0,0.00126932]
[1760568669038,2.47683352,110910.0,110900.0,0.00126932]
[1760568669462,2.50915753,110910.0,110900.0,0.00126932]
[1760568669863,2.50074228,110910.0,110900.0,0.00126932]
[1760568672370,2.50916632,110910.0,110900.0,0.00126932]
[1760568673275,2.39560632,110910.0,110900.0,0.00126932]
[1760568673506,2.47684231,110910.0,110900.0,0.00126932]
[1760568674163,2.47684804,110910.0,110900.0,0.00126932]
[1760568674368,2.509219,110910.0,110900.0,0.00126932]
[1760568674784,2.395659,110910.0,110900.0,0.00126932]
[1760568674994,2.0696608,110910.0,110900.0,0.00126932]
[1760568675251,1.40333185,110910.0,110900.0,0.18161197]
[1760568675474,0.03720821,110910.0,110900.0,0.62117017]
[1760568675697,0.03720821,110910.0,110900.0,0.73477017]
[1760568675698,0.001,110910.0,110900.0,0.73477017]
[1760568675912,0.02427956,110930.0,110920.0,0.18031013]
[1760568675913,0.01686339,110930.0,110920.0,0.18031013]
[1760568676124,1.23664639,110930.0,110920.0,0.18031013]
[1760568676309,1.219783,110940.0,110930.0,0.18028874]
[1760568676561,1.23663315,110940.0,110930.0,0.18028874]
[1760568676778,1.219783,110940.0,110930.0,0.18028874]
[1760568677003,1.40006062,110940.0,110930.0,0.18029387]
[1760568677599,1.219783,110940.0,110930.0,0.18029387]
[1760568677850,1.40006062,110940.0,110930.0,0.18029387]
[1760568678749,1.40004481,110950.0,110940.0,0.18027762]
[1760568678969,1.219783,110940.0,110930.0,0.18029387]
[1760568679424,1.40006062,110940.0,110930.0,0.18029387]
[1760568679642,1.219783,110940.0,110930.0,0.18029387]
[1760568680077,1.40004437,110950.0,110940.0,0.18027762]
[1760568680304,1.219783,110950.0,110940.0,0.18027762]
[1760568681178,1.40004437,110950.0,110940.0,0.18027762]
[1760568681589,1.40004437,110950.0,110930.0,0.18038408]
[1760568681809,0.18026137,110950.0,110930.0,0.29394408]
[1760568682052,0.18026137,110950.0,110940.0,0.18027762]
[1760568684042,0.18026137,110950.0,110930.0,0.29394408]
[1760568684973,0.18026137,110950.0,110940.0,0.18027762]
[1760568686846,0.18027762,110940.0,110930.0,9.021e-05]
[1760568687325,1.17981932,110940.0,110930.0,9.021e-05]
[1760568687963,1.19914218,110940.0,110930.0,9.021e-05]
[1760568689462,0.01677338,110940.0,110930.0,0.18038408]
[1760568689716,0.63378584,110950.0,110930.0,0.18038408]
[1760568689922,0.18027762,110940.0,110930.0,0.18038408]
[1760568691079,0.62881723,110960.0,110940.0,0.18027762]
[1760568691080,0.18925903,110960.0,110940.0,0.18027762]
[1760568691301,0.63572496,110960.0,110940.0,0.18027762]
[1760568691520,0.74928496,110960.0,110940.0,0.18027762]
[1760568691959,0.74928496,110960.0,110950.0,0.18026137]
[1760568692235,0.61894915,110960.0,110950.0,0.18026137]
[1760568692462,0.26104767,110980.0,110950.0,0.18026137]
[1760568692683,0.20325012,110970.0,110960.0,0.18024391]
[1760568692907,0.20861844,110980.0,110960.0,0.18024391]
[1760568693123,0.18022889,110970.0,110960.0,0.18024391]
[1760568693338,0.39254569,110980.0,110960.0,0.18024391]
[1760568693570,0.11356,110980.0,110970.0,0.18022889]
[1760568693777,0.29377265,110980.0,110970.0,0.01802288]
[1760568694013,0.18021265,110980.0,110970.0,0.19825177]
[1760568694231,0.20410217,110990.0,110970.0,0.19825177]
[1760568694232,0.00450235,110990.0,110970.0,0.18022889]
[1760568694444,0.00450235,110990.0,110980.0,0.01802126]
[1760568694445,0.18469877,110990.0,110980.0,0.01802126]
[1760568694680,0.18021265,110980.0,110970.0,0.11356]
[1760568694885,0.18021265,110980.0,110970.0,0.1803191]
[1760568695092,0.18021265,110980.0,110970.0,0.2939191]
[1760568695512,0.52469877,110990.0,110970.0,0.1803191]
[1760568695720,0.53370859,110990.0,110980.0,0.01604436]
[1760568696167,0.18021265,110980.0,110970.0,0.2949191]
[1760568696561,0.18021265,110980.0,110970.0,0.2939191]
[1760568697685,0.18021265,110980.0,110970.0,0.2949191]
[1760568697893,0.53370859,110990.0,110970.0,0.2949191]
[1760568698094,0.55045807,110990.0,110970.0,0.2949191]
[1760568698517,0.55045807,110990.0,110970.0,0.1813191]
[1760568698737,0.18021265,110980.0,110970.0,0.1813191]
[1760568698953,0.18021265,110980.0,110970.0,0.1803191]
[1760568699160,0.18021265,110980.0,110970.0,0.11365021]
[1760568699367,0.18021265,110980.0,110970.0,0.1803191]
[1760568699579,0.18021265,110980.0,110970.0,0.2938791]
[1760568700038,0.18021265,110980.0,110970.0,0.2948791]
[1760568700256,0.18021265,110980.0,110970.0,0.1813191]
[1760568700468,0.18021265,110980.0,110970.0,0.2948791]
[1760568701370,0.18021265,110980.0,110970.0,0.11465021]
[1760568701580,0.87123395,110980.0,110970.0,0.00109021]
[1760568701791,0.21626758,110980.0,110970.0,0.00109021]
[1760568702002,0.65052686,110980.0,110970.0,0.00109021]
[1760568702214,1.43378479,110980.0,110970.0,0.00109021]
[1760568702469,1.44216474,110980.0,110970.0,9.021e-05]
[1760568702684,1.32860474,110980.0,110970.0,9.021e-05]
[1760568702825,1.44216474,110980.0,110970.0,9.021e-05]
[1760568703011,1.41703058,110980.0,110970.0,9.021e-05]
[1760568703235,1.44216915,110980.0,110970.0,9.021e-05]
[1760568703437,1.44316915,110980.0,110970.0,9.021e-05]
[1760568703643,1.41803058,110980.0,110970.0,9.021e-05]
[1760568703849,1.32962048,110980.0,110970.0,9.021e-05]
[1760568704254,1.41803058,110980.0,110970.0,9.021e-05]
[1760568704676,1.30447058,110980.0,110970.0,9.021e-05]
[1760568704883,1.41806392,110980.0,110970.0,9.021e-05]
[1760568705283,1.46635627,110980.0,110970.0,9.021e-05]
[1760568705644,1.49153685,110980.0,110970.0,9.021e-05]
[1760568705849,1.41021443,110980.0,110970.0,9.021e-05]
[1760568706092,1.55991671,110980.0,110970.0,9.021e-05]
[1760568706325,1.52767913,110980.0,110970.0,9.021e-05]
[1760568706532,1.5064771,110980.0,110970.0,9.021e-05]
[1760568706715,1.5064771,110980.0,110920.0,0.18932491]
[1760568706716,0.18029387,110930.0,110920.0,0.18932491]
[1760568706919,0.19708099,110930.0,110920.0,0.30293523]
[1760568707802,0.12296332,110930.0,110920.0,0.30293523]
[1760568708013,0.12296332,110930.0,110920.0,0.30393523]
[1760568708218,0.01678712,110930.0,110920.0,0.30393523]
[1760568708414,0.19708099,110930.0,110920.0,0.19041523]
[1760568708623,0.19708099,110930.0,110920.0,0.18941523]
[1760568708834,0.19708099,110930.0,110920.0,0.30393523]
[1760568709259,0.01678712,110930.0,110920.0,0.30393523]
[1760568709466,0.01678712,110930.0,110920.0,0.19041523]
[1760568709671,0.19707935,110940.0,110920.0,0.30393523]
[1760568710104,0.19707935,110940.0,110920.0,0.19041523]
[1760568710320,0.19707935,110940.0,110920.0,0.30393523]
[1760568710537,0.18029387,110930.0,110920.0,0.30393523]
[1760568710752,0.19708099,110930.0,110920.0,0.30293523]
[1760568710955,0.19708099,110930.0,110920.0,0.18941523]
[1760568711223,0.19708099,110930.0,110920.0,0.30293523]
[1760568711471,0.19708099,110930.0,110920.0,0.18040045]
[1760568711683,0.19708099,110930.0,110920.0,9.032e-05]
[1760568712785,0.19708099,110930.0,110920.0,0.18040045]
[1760568713660,0.17750654,110930.0,110920.0,0.18040045]
[1760568713877,0.17750654,110930.0,110920.0,9.032e-05]
[1760568714089,0.17750654,110930.0,110920.0,0.18040045]
[1760568714306,0.01678712,110930.0,110920.0,0.18040045]
[1760568714522,0.19708099,110930.0,110920.0,0.18040045]
[1760568715194,0.01678712,110930.0,110920.0,0.29392045]
[1760568715425,0.18029387,110930.0,110920.0,0.29392045]
[1760568715855,0.18029387,110930.0,110920.0,0.18040045]
[1760568716120,0.18029387,110930.0,110920.0,0.29392045]
[1760568716355,0.32215677,110950.0,110930.0,0.18028194]
[1760568716568,0.01677006,110950.0,110940.0,0.18027762]
[1760568716750,0.09108616,110960.0,110950.0,0.18026137]
[1760568716751,0.09884469,110960.0,110950.0,0.18026137]
[1760568716987,0.2687693,110960.0,110950.0,0.18026137]
[1760568717231,0.19701866,110960.0,110940.0,0.18027762]
[1760568717444,0.19701866,110960.0,110940.0,0.29383762]
[1760568718302,0.01677353,110960.0,110950.0,0.19664153]
[1760568718537,0.18024513,110960.0,110950.0,0.18026137]
[1760568718753,0.01677353,110960.0,110950.0,0.29378137]
[1760568718976,0.18925342,110970.0,110950.0,0.29378137]
[1760568719181,0.18024513,110960.0,110950.0,0.18026137]
[1760568719383,0.18024513,110960.0,110950.0,0.29382137]
[1760568719587,0.18024513,110960.0,110950.0,0.29378137]
[1760568720229,0.19702678,110960.0,110950.0,0.11352]
[1760568720458,0.18026137,110950.0,110940.0,0.1892915]
[1760568720659,0.18026137,110950.0,110940.0,0.3028115]
[1760568720871,0.18024513,110960.0,110940.0,0.3028115]
[1760568721087,0.18026137,110950.0,110940.0,0.3028115]
[1760568721304,0.17297653,110960.0,110940.0,0.1892915]
[1760568721548,0.18026137,110950.0,110940.0,0.3028115]
[1760568721763,0.17297653,110960.0,110950.0,0.18026137]
[1760568721944,0.18975905,110960.0,110950.0,0.18026137]
[1760568722604,0.18975905,110960.0,110940.0,0.3038115]
[1760568723054,0.18975905,110960.0,110940.0,0.1902915]
[1760568723246,0.30327905,110960.0,110940.0,0.1892915]
[1760568723667,0.30327905,110960.0,110950.0,0.18026137]
[1760568724974,0.19702765,110960.0,110950.0,0.18026137]
[1760568725182,0.18925342,110970.0,110950.0,0.18026137]
[1760568725408,0.18024513,110960.0,110950.0,0.18026137]
[1760568725637,0.35933406,110970.0,110960.0,0.18024513]
[1760568725855,0.01678768,110970.0,110960.0,0.18024513]
[1760568726066,0.20403411,110990.0,110970.0,0.18022889]
[1760568726277,0.02129492,110990.0,110980.0,0.18021265]
[1760568726484,0.34209666,110990.0,110980.0,0.18021265]
[1760568726716,0.18021265,110980.0,110970.0,0.18022889]
[1760568726918,0.18021265,110980.0,110970.0,0.29383921]
[1760568727956,0.18021265,110980.0,110970.0,0.18131921]
[1760568728162,0.52021265,110980.0,110970.0,0.00109032]
[1760568728405,0.66985128,110980.0,110970.0,0.00109032]
[1760568728588,0.66985128,110980.0,110970.0,0.0191132]
[1760568728822,0.65051458,110980.0,110970.0,0.0191132]
[1760568729268,0.63377265,110980.0,110970.0,0.0191132]
[1760568729474,0.63373265,110980.0,110970.0,0.0191132]
[1760568729678,0.52021265,110980.0,110970.0,0.0191132]
[1760568729886,0.63373265,110980.0,110970.0,0.0181132]
[1760568730302,0.11352,110980.0,110970.0,0.0181132]
[1760568730510,0.29373265,110980.0,110970.0,0.0181132]
[1760568731165,0.18021265,110980.0,110970.0,0.0181132]
[1760568731400,0.31051934,110980.0,110970.0,9.032e-05]
[1760568731622,0.98478643,110980.0,110970.0,9.032e-05]
[1760568731848,1.09381669,110980.0,110970.0,9.032e-05]
[1760568732074,0.98029669,110980.0,110970.0,9.032e-05]
[1760568732282,1.43381669,110980.0,110970.0,9.032e-05]
[1760568733370,1.43385669,110980.0,110970.0,9.032e-05]
[1760568733575,1.32029669,110980.0,110970.0,9.032e-05]
[1760568733783,1.43385669,110980.0,110970.0,9.032e-05]
[1760568733993,1.43481669,110980.0,110970.0,9.032e-05]
[1760568734200,1.32129669,110980.0,110970.0,9.032e-05]
[1760568734421,1.43481669,110980.0,110970.0,9.032e-05]
[1760568734640,0.7605496,110980.0,110970.0,9.032e-05]
[1760568734821,1.43481669,110980.0,110970.0,9.032e-05]
[1760568735066,1.32129669,110980.0,110970.0,9.032e-05]
[1760568735272,1.43481669,110980.0,110970.0,9.032e-05]
[1760568735483,1.41547655,110980.0,110970.0,9.032e-05]
[1760568735709,1.30195655,110980.0,110970.0,9.032e-05]
[1760568735934,1.43481843,110980.0,110970.0,9.032e-05]
[1760568736564,1.47939446,110980.0,110970.0,9.032e-05]
[1760568737227,1.36587446,110980.0,110970.0,9.032e-05]
[1760568737407,1.47939446,110980.0,110970.0,9.032e-05]
[1760568738515,1.50648639,110980.0,110970.0,9.032e-05]
[1760568738731,1.39296639,110980.0,110970.0,9.032e-05]
[1760568738936,1.50648639,110980.0,110970.0,9.032e-05]
[1760568739354,0.7186993,110980.0,110970.0,9.032e-05]
[1760568739564,0.71030555,110980.0,110970.0,9.032e-05]
[1760568739783,1.49809264,110980.0,110970.0,9.032e-05]
[1760568740175,1.38457264,110980.0,110970.0,9.032e-05]
[1760568740381,1.49809264,110980.0,110970.0,9.032e-05]
[1760568741128,1.38457264,110980.0,110970.0,9.032e-05]
[1760568741319,1.49809264,110980.0,110970.0,9.032e-05]
[1760568741860,1.38457668,110980.0,110970.0,9.032e-05]
[1760568742105,1.49809668,110980.0,110970.0,9.032e-05]
[1760568742310,1.52227352,110980.0,110970.0,9.032e-05]
[1760568742548,1.38457668,110980.0,110970.0,9.032e-05]
[1760568742777,1.49809668,110980.0,110970.0,9.032e-05]
[1760568743764,1.38457668,110980.0,110970.0,9.032e-05]
[1760568743961,1.49809668,110980.0,110970.0,9.032e-05]
[1760568744308,1.52227352,110980.0,110970.0,9.032e-05]
[1760568744517,1.45603558,110980.0,110970.0,9.032e-05]
[1760568745122,1.46444286,110980.0,110970.0,9.032e-05]
[1760568746160,0.79017577,110980.0,110970.0,9.032e-05]
[1760568746362,1.46444286,110980.0,110970.0,9.032e-05]
[1760568746567,0.75399349,110980.0,110970.0,9.032e-05]
[1760568746772,0.75399349,110980.0,110970.0,0.18031921]
[1760568746773,0.03713261,110980.0,110970.0,0.18031921]
[1760568746990,0.001,110980.0,110970.0,0.18031921]
[1760568747436,0.001,110980.0,110970.0,0.27000933]
[1760568747665,0.001,110980.0,110970.0,0.94427642]
[1760568747871,0.00450235,110990.0,110980.0,0.18021265]
[1760568748782,0.18469876,110990.0,110980.0,0.18021265]
[1760568749038,0.18021265,110980.0,110970.0,0.18131921]
[1760568749288,0.18469876,110990.0,110970.0,0.18031921]
[1760568749776,0.18469876,110990.0,110980.0,0.001]
[1760568750022,0.18469876,110990.0,110980.0,0.19923391]
[1760568750260,0.18469876,110990.0,110980.0,0.18121265]
[1760568750493,0.18469876,110990.0,110980.0,0.001]
[1760568751496,0.18021265,110980.0,110970.0,0.29387163]
[1760568752165,0.85447974,110980.0,110970.0,9.032e-05]
[1760568752377,1.19447974,110980.0,110970.0,9.032e-05]
[1760568752598,0.52021265,110980.0,110970.0,0.00109032]
[1760568753061,0.52021265,110980.0,110970.0,9.032e-05]
[1760568759773,0.11802235,110990.0,110970.0,0.19834209]
[1760568759972,0.18469876,110990.0,110980.0,0.18021265]
[1760568760575,0.18469876,110990.0,110970.0,0.73278665]
[1760568760819,0.18469876,110990.0,110970.0,0.29383921]
[1760568761050,0.18469876,110990.0,110980.0,0.19823391]
[1760568761261,0.18469876,110990.0,110980.0,0.18021265]
[1760568761875,0.00450235,110990.0,110980.0,0.18021265]
[1760568762091,0.00450235,110990.0,110980.0,0.61916009]
[1760568762504,0.00450235,110990.0,110980.0,0.29377265]
[1760568762709,0.00450235,110990.0,110980.0,0.29477265]
[1760568763299,0.18469876,110990.0,110980.0,0.29477265]
[1760568763506,0.18469876,110990.0,110980.0,0.001]
[1760568763724,0.6236462,110990.0,110980.0,0.001]
[1760568764267,0.18469876,110990.0,110980.0,0.01902126]
[1760568764467,0.00450235,110990.0,110980.0,0.19823391]
[1760568764951,0.00450235,110990.0,110980.0,0.31175391]
[1760568765099,0.00450235,110990.0,110980.0,0.82237021]
[1760568765311,0.00450235,110990.0,110980.0,0.26990277]
[1760568765534,0.00450235,110990.0,110980.0,0.38442277]
[1760568765946,0.00450235,110990.0,110980.0,0.27090277]
[1760568766149,0.00450235,110990.0,110980.0,0.38442277]
[1760568766612,0.00450235,110990.0,110980.0,0.27090277]
[1760568766740,0.00450235,110990.0,110980.0,0.38342277]
[1760568767143,0.00450235,110990.0,110980.0,0.27090277]
[1760568767370,0.00450235,110990.0,110980.0,0.82337021]
[1760568768351,0.00450235,110990.0,110980.0,0.70985021]
[1760568768573,0.00450235,110990.0,110980.0,0.82337021]
[1760568768904,0.00450235,110990.0,110980.0,1.04985021]
[1760568769116,0.00450235,110990.0,110980.0,1.99955249]
[1760568769523,0.00450235,110990.0,110980.0,1.88603249]
[1760568769733,0.00450235,110990.0,110980.0,1.99955249]
[1760568770150,0.00450235,110990.0,110980.0,1.99959249]
[1760568770360,0.00450235,110990.0,110980.0,1.88603249]
[1760568770565,0.00450235,110990.0,110980.0,1.99959249]
[1760568770990,0.00450235,110990.0,110980.0,1.88603249]
[1760568771176,0.00450235,110990.0,110980.0,1.99959249]
[1760568771381,0.00450235,110990.0,110980.0,2.39959249]
[1760568771583,0.00450235,110990.0,110980.0,2.28603249]
[1760568771796,0.00450235,110990.0,110980.0,2.39959249]
[1760568772000,0.00450235,110990.0,110980.0,1.56064505]
[1760568772220,0.00450235,110990.0,110980.0,1.88603249]
[1760568772425,0.00450235,110990.0,110980.0,1.99959249]
[1760568773047,0.00450235,110990.0,110980.0,1.88603249]
[1760568773251,0.00450235,110990.0,110980.0,1.99959249]
[1760568773655,0.00450235,110990.0,110980.0,1.88603249]
[1760568773858,0.00450235,110990.0,110980.0,1.99955249]
[1760568776698,0.00450235,110990.0,110980.0,0.61090277]
[1760568776900,0.00450235,110990.0,110980.0,1.16337021]
[1760568777530,0.00450235,110990.0,110980.0,1.16237021]
[1760568777725,0.00450235,110990.0,110980.0,1.16337021]
[1760568779052,0.00450235,110990.0,110980.0,1.16237021]
[1760568779271,0.00450235,110990.0,110980.0,1.19955249]
[1760568779509,0.00450235,110990.0,110980.0,1.08603249]
[1760568779720,0.00450235,110990.0,110980.0,1.19955249]
[1760568780158,0.00450235,110990.0,110980.0,0.76060505]
[1760568780380,0.00450235,110990.0,110980.0,1.08603249]
[1760568780617,0.00450235,110990.0,110980.0,0.76060505]
[1760568780829,0.00450235,110990.0,110980.0,1.19955249]
[1760568781918,0.00450235,110990.0,110980.0,1.08603249]
[1760568782123,0.00450235,110990.0,110980.0,1.19955249]
[1760568782365,0.00450235,110990.0,110980.0,0.76060505]
[1760568782575,0.00450235,110990.0,110980.0,1.19955249]
[1760568783214,0.00450235,110990.0,110980.0,1.19951249]
[1760568784286,0.00450235,110990.0,110980.0,1.08603249]
[1760568784496,0.00450235,110990.0,110980.0,1.19951249]
[1760568784923,0.00450235,110990.0,110980.0,1.08603249]
[1760568785129,1e-08,110990.0,110980.0,1.72368517]
[1760568785576,1e-08,110990.0,110980.0,1.28473773]
[1760568785782,1e-08,110990.0,110980.0,1.61020517]
[1760568785989,1e-08,110990.0,110980.0,1.72368517]
[1760568786442,1e-08,110990.0,110980.0,1.72268517]
[1760568786864,1e-08,110990.0,110980.0,2.16363261]
[1760568787510,1e-08,110990.0,110980.0,1.72468517]
[1760568788146,1e-08,110990.0,110980.0,1.61120517]
[1760568788348,1e-08,110990.0,110980.0,2.16363261]
[1760568788554,1e-08,110990.0,110980.0,2.16163261]
[1760568788964,1e-08,110990.0,110980.0,2.16363261]
[1760568789148,1e-08,110990.0,110980.0,2.16359261]
[1760568789421,1e-08,110990.0,110980.0,1.72514517]
[1760568791541,1e-08,110990.0,110980.0,1.20097249]
[1760568791971,1e-08,110990.0,110980.0,1.08753249]
[1760568792193,1e-08,110990.0,110980.0,0.71135021]
[1760568792399,0.0717521,111020.0,110980.0,0.71135021]
[1760568792400,0.18239387,111020.0,111000.0,0.1801679]
[1760568792637,0.18239387,111020.0,111000.0,0.38329802]
[1760568792834,0.16557346,111020.0,111000.0,0.38329802]
[1760568793049,0.11064097,111020.0,111000.0,0.38329802]
[1760568793255,0.11064097,111020.0,111000.0,0.26985802]
[1760568793459,0.18016394,111010.0,111000.0,0.38329802]
[1760568793896,0.18016394,111010.0,111000.0,0.26985802]
[1760568794097,0.18016394,111010.0,111000.0,0.38329802]
[1760568794310,0.08541116,111020.0,111000.0,0.38329802]
[1760568794506,0.11066033,111020.0,111000.0,0.26985802]
[1760568794924,0.11066033,111020.0,111000.0,0.88329802]
[1760568795126,0.11066033,111020.0,111010.0,0.18016394]
[1760568796262,0.11115865,111020.0,111010.0,0.18016394]
[1760568799030,0.18016394,111010.0,111000.0,0.82224546]
[1760568799238,0.18016394,111010.0,111000.0,0.38329802]
[1760568799454,0.08590948,111020.0,111000.0,0.38329802]
[1760568799710,0.11117868,111020.0,111000.0,0.38329802]
[1760568799931,0.11117868,111020.0,111000.0,0.38325802]
[1760568800190,0.11117868,111020.0,111000.0,0.26985802]
[1760568800428,0.1111788,111020.0,111000.0,0.38325802]
[1760568801363,0.18016394,111010.0,111000.0,0.38325802]
[1760568801568,0.05590252,111020.0,111000.0,0.38325802]
[1760568801850,0.18016394,111010.0,111000.0,0.38325802]
[1760568802051,0.05590252,111020.0,111000.0,0.38325802]
[1760568802263,0.08117548,111020.0,111000.0,0.38325802]
[1760568803484,0.07275116,111020.0,111000.0,0.38325802]
[1760568804263,0.05590252,111020.0,111000.0,0.38325802]
[1760568805078,0.18016394,111010.0,111000.0,0.38325802]
[1760568805725,0.05590252,111020.0,111000.0,0.38325802]
[1760568806130,0.05590252,111020.0,111000.0,0.26985802]
[1760568806329,0.05590252,111020.0,111000.0,0.38321802]
[1760568807628,0.41585981,111030.0,111000.0,0.38321802]
[1760568807812,0.18017164,111020.0,111000.0,0.38321802]
[1760568808018,0.18917902,111020.0,111000.0,0.38321802]
[1760568808236,0.18917902,111020.0,111010.0,0.18016394]
[1760568808443,0.18917902,111020.0,111000.0,0.38321802]
[1760568808663,0.18917902,111020.0,110990.0,0.18019631]
[1760568808664,0.18016394,111010.0,110990.0,0.18019631]
[1760568808861,0.18016394,111010.0,111000.0,0.18018018]
[1760568809500,0.18016394,111010.0,111000.0,0.5661713]
[1760568809853,0.18016394,111010.0,110990.0,0.76927755]
[1760568810713,0.18016394,111010.0,110990.0,0.65587755]
[1760568811121,0.18016394,111010.0,111000.0,0.18018018]
[1760568812424,0.18016394,111010.0,110990.0,0.38328643]
[1760568812647,0.18016394,111010.0,111000.0,0.18018018]
[1760568813561,0.18016394,111010.0,111000.0,0.5661713]
[1760568814237,0.18016394,111010.0,110990.0,0.65587755]
[1760568814441,0.18016394,111010.0,111000.0,0.38599112]
[1760568814867,0.18134151,111010.0,111000.0,0.38599112]
[1760568816164,0.18134151,111010.0,111000.0,0.5661713]
[1760568817142,0.18134151,111010.0,111000.0,0.38599112]
[1760568818073,0.18134151,111010.0,111000.0,0.5661713]
[1760568819299,0.18134151,111010.0,111000.0,0.38599112]
[1760568819924,0.18134151,111010.0,111000.0,0.5661713]
[1760568821504,0.18134151,111010.0,111000.0,0.18018018]
[1760568822259,0.18134151,111010.0,110990.0,0.76923113]
[1760568822632,0.00058886,111000.0,110990.0,0.65587113]
[1760568822836,0.00058886,111000.0,110990.0,0.76919113]
[1760568823060,0.18076904,111000.0,110990.0,0.26988653]
[1760568823504,0.18019641,110990.0,110970.0,0.18923361]
[1760568823710,0.18019641,110990.0,110980.0,0.38326277]
[1760568824680,0.18019641,110990.0,110980.0,0.38376109]
[1760568826280,0.18019641,110990.0,110980.0,0.27040109]
[1760568826455,0.18019641,110990.0,110980.0,0.38372109]
[1760568828112,0.18019641,110990.0,110980.0,0.09018844]
[1760568828318,0.18019641,110990.0,110980.0,0.00049832]
[1760568828522,0.18019641,110990.0,110980.0,0.18071097]
[1760568837191,0.18019641,110990.0,110980.0,0.00049832]
[1760568837764,0.18019641,110990.0,110980.0,0.18071097]
[1760568839615,0.18019641,110990.0,110980.0,0.00049832]
[1760568839818,0.90618111,110990.0,110980.0,0.00049832]
[1760568840050,0.99587123,110990.0,110980.0,0.00049832]
[1760568840365,1.05924508,110990.0,110980.0,0.00049832]
[1760568840494,1.17256508,110990.0,110980.0,0.00049832]
[1760568840871,1.17256501,110990.0,110980.0,0.00049832]
[1760568841193,1.05924501,110990.0,110980.0,0.00049832]
[1760568841555,1.17256501,110990.0,110980.0,0.00049832]
[1760568841763,1.17356501,110990.0,110980.0,0.00049832]
[1760568842178,1.06024501,110990.0,110980.0,0.00049832]
[1760568842386,1.17356501,110990.0,110980.0,0.00049832]
[1760568842600,1.19784729,110990.0,110980.0,0.00049832]
[1760568842805,1.20627087,110990.0,110980.0,0.00049832]
[1760568843684,1.20624536,110990.0,110980.0,0.00049832]
[1760568845199,1.09292536,110990.0,110980.0,0.00049832]
[1760568845403,1.20624536,110990.0,110980.0,0.00049832]
[1760568846012,1.20623376,110990.0,110980.0,0.00049832]
[1760568849365,1.09291376,110990.0,110980.0,0.00049832]
[1760568849589,1.20621459,110990.0,110980.0,0.00049832]
[1760568851763,1.18939639,110990.0,110980.0,0.00049832]
[1760568851968,1.20621235,110990.0,110980.0,0.00049832]
[1760568852819,1.14672815,110990.0,110980.0,0.00049832]
[1760568853189,1.14673322,110990.0,110980.0,0.00049832]
[1760568854191,1.20719778,110990.0,110980.0,0.00049832]
[1760568855046,1.09387778,110990.0,110980.0,0.00049832]
[1760568855254,1.20719778,110990.0,110980.0,0.00049832]
[1760568855428,1.20619778,110990.0,110980.0,0.00049832]
[1760568855612,1.09287778,110990.0,110980.0,0.00049832]
[1760568855815,1.20719778,110990.0,110980.0,0.00049832]
[1760568856428,1.20719937,110990.0,110980.0,0.00049832]
[1760568856866,1.09387937,110990.0,110980.0,0.00049832]
[1760568857073,1.20719937,110990.0,110980.0,0.00049832]
[1760568859355,1.19037834,110990.0,110980.0,0.00049832]
[1760568859547,1.20721502,110990.0,110980.0,0.00049832]
[1760568860919,0.00901225,110960.0,110930.0,0.4577368]
[1760568861131,0.00901225,110960.0,110930.0,0.34181866]
[1760568861132,0.18027762,110940.0,110930.0,0.34181866]
[1760568861376,0.18027762,110940.0,110930.0,0.27006656]
[1760568861603,0.18027762,110940.0,110930.0,9.032e-05]
[1760568861889,0.56626232,110940.0,110930.0,9.032e-05]
[1760568862101,1.03644974,110940.0,110930.0,9.032e-05]
[1760568862337,1.03644836,110940.0,110930.0,9.032e-05]
[1760568862541,0.94246369,110940.0,110930.0,9.032e-05]
[1760568862763,1.03215381,110940.0,110930.0,9.032e-05]
[1760568862970,1.16979609,110940.0,110930.0,9.032e-05]
[1760568863381,1.03215381,110940.0,110930.0,9.032e-05]
[1760568863614,1.16979609,110940.0,110930.0,9.032e-05]
[1760568864045,1.44242079,110940.0,110930.0,9.032e-05]
[1760568864253,1.47465659,110940.0,110930.0,9.032e-05]
[1760568864465,1.58901659,110940.0,110930.0,9.032e-05]
[1760568865082,1.56373431,110940.0,110930.0,9.032e-05]
[1760568865291,1.56473431,110940.0,110930.0,9.032e-05]
[1760568865498,1.45137431,110940.0,110930.0,9.032e-05]
[1760568865710,1.56473431,110940.0,110930.0,9.032e-05]
[1760568866137,1.17874961,110940.0,110930.0,9.032e-05]
[1760568866972,1.20291976,110940.0,110930.0,9.032e-05]
[1760568867178,1.17874961,110940.0,110930.0,9.032e-05]
[1760568868237,1.06538961,110940.0,110930.0,9.032e-05]
[1760568868446,1.17874961,110940.0,110930.0,9.032e-05]
[1760568868739,1.56473431,110940.0,110930.0,9.032e-05]
[1760568869387,1.49972801,110940.0,110930.0,9.032e-05]
[1760568869688,1.56473431,110940.0,110930.0,9.032e-05]
[1760568871154,1.61308801,110940.0,110930.0,9.032e-05]
[1760568871362,1.64018714,110940.0,110930.0,9.032e-05]
[1760568873743,1.52682714,110940.0,110930.0,9.032e-05]
[1760568873956,1.64018714,110940.0,110930.0,9.032e-05]
[1760568874355,1.67636942,110940.0,110930.0,9.032e-05]
[1760568874568,1.64413362,110940.0,110930.0,9.032e-05]
[1760568875288,1.64413362,110940.0,110930.0,0.00400453]
[1760568875500,1.65252212,110940.0,110930.0,0.00400453]
[1760568875917,0.18034265,110900.0,110890.0,0.0717521]
[1760568876133,0.69646223,110900.0,110890.0,0.07190242]
[1760568876356,0.60247756,110900.0,110890.0,0.00015032]
[1760568876572,0.71583756,110900.0,110890.0,0.00015032]